[Event "RUS-chT Premier League 2018"]
[Site "Sochi"]
[Date "2018.05.04"]
[Round "4"]
[White "Vdovin, Maxim"]
[Black "Yumakhuzhin, Vadim"]
[Result "0-1"]
[ECO "E62"]
[WhiteElo "2139"]
[BlackElo "2184"]
[Annotator "NA"]
[PlyCount "80"]
[EventDate "2018.??.??"]
[EventCountry "RUS"]
[SourceTitle "playchess.com"]
[Source "ChessBase"]
[SourceQuality "1"]
[TimeControl "40/5400+30:1800+30"]

1. d4 {[%emt 0:00:00]} Nf6 {[%emt 0:00:07]} 2. Nf3 {[%emt 0:00:00]} g6 {[%emt 0:00:07]} 3. c4 {[%emt 0:00:00]} Bg7 {[%emt 0:00:06]} 4. g3 {[%emt 0:00:00]} O-O {[%emt 0:00:09]} 5. Bg2 {[%emt 0:00:00]} d6 {[%emt 0:00:07]} 6. O-O {[%emt 0:00:06]} Nc6 {[%emt 0:00:11]} 7. Nc3 {[%emt 0:02:49]} Bf5 {[%emt 0:03:54]} 8. Re1 {[%emt 0:02:00]} e5 {[%emt 0:03:37] E62: King's Indian: Fianchetto: 6...c6 and Panno Variation (6...Nc6) without ...a6} 9. d5 {[%emt 0:02:23]} Ne7 {[%emt 0:02:17]} 10. e4 {[%emt 0:00:24]} Bd7 {[%emt 0:02:36]} 11. Rb1 {[%emt 0:03:24]} a5 {[%emt 0:04:05]} 12. c5 $146 {[%emt 0:04:06]} ({Predecessor:} 12. a3 Ne8 13. b4 axb4 14. axb4 h6 15. c5 f5 16. Nd2 f4 {½-½ (37) Mamedjarova,Z (2349)-Dembo,Y (2396) Mallorca 2004}) 12... Ne8 {[%emt 0:03:23]} 13. Be3 {[%emt 0:01:04]} h6 {[%emt 0:13:09]} 14. Qc1 {[%emt 0:02:03]} Kh7 {[%emt 0:01:06]} 15. b4 {[%emt 0:01:11]} a4 {[%emt 0:06:37]} 16. Nd2 {[%emt 0:01:00]} f5 {[%emt 0:02:22]} 17. f4 {[%emt 0:02:58]} (17. f3 $14) 17... fxe4 {[%emt 0:05:52]} (17... exf4 $15 {keeps the upper hand.} 18. gxf4 (18. Bxf4 g5 $11) 18... fxe4 19. Ndxe4 Bf5) 18. Ndxe4 {[%emt 0:08:23]} Nf5 {[%emt 0:02:38]} 19. Bf2 {[%emt 0:03:18]} exf4 {[%emt 0:03:29]} 20. Qxf4 {[%emt 0:00:20]} Be5 {[%emt 0:04:22]} 21. Qd2 {[%emt 0:00:16]} Nf6 {[%emt 0:00:50]} 22. Nxf6+ {[%emt 0:09:05]} Qxf6 {[%emt 0:00:30]} 23. Ne4 {[%emt 0:00:04]} Qg7 {[%emt 0:03:17]} 24. c6 {[%emt 0:14:48]} bxc6 {[%emt 0:06:46]} 25. dxc6 {[%emt 0:00:04]} Be6 $14 {[%emt 0:00:58]} 26. b5 {[%emt 0:00:55]} Nd4 {[%emt 0:05:38]} 27. b6 {[%emt 0:01:20]} cxb6 {[%emt 0:02:37]} 28. Rxb6 {[%emt 0:00:29]} Rac8 {[%emt 0:07:33]} 29. Nxd6 {[%emt 0:02:49]} Rxf2 {[%emt 0:00:54]} 30. Qxf2 {[%emt 0:01:55]} Bxd6 {[%emt 0:00:06]} 31. Rb7 {[%emt 0:00:19]} Rc7 {[%emt 0:00:49]} 32. Rd1 {[%emt 0:01:11]} Bc8 {[%emt 0:05:14]} 33. Qxd4 {[%emt 0:02:43]} Be5 {[%emt 0:06:32]} 34. Rxc7 {[%emt 0:02:01]} Bxd4+ {[%emt 0:00:19]} 35. Rxd4 {[%emt 0:00:44]} Qxc7 {[%emt 0:00:07]} 36. Kf2 {[%emt 0:02:09]} Qf7+ {[%emt 0:00:31]} 37. Ke3 {[%emt 0:00:18]} Qxa2 {[%emt 0:00:16]} 38. Bd5 {[%emt 0:02:57]} Qa3+ {[%emt 0:01:32]} 39. Rd3 {[%emt 0:00:24]} Qc5+ {[%emt 0:00:07]} 40. Ke4 {[%emt 0:00:00]} Bf5+ {[%emt 0:00:08]} 0-1

[Event "RUS-chT Premier League 2018"]
[Site "Sochi"]
[Date "2018.05.05"]
[Round "5"]
[White "Saveliev, Alexei"]
[Black "Vdovin, Maxim"]
[Result "1/2-1/2"]
[ECO "C43"]
[WhiteElo "2354"]
[BlackElo "2139"]
[Annotator "NA"]
[PlyCount "80"]
[EventDate "2018.??.??"]
[EventCountry "RUS"]
[SourceTitle "playchess.com"]
[Source "ChessBase"]
[SourceQuality "1"]
[TimeControl "40/5400+30:1800+30"]

1. e4 {[%emt 0:00:00]} e5 {[%emt 0:00:05]} 2. Nf3 {[%emt 0:00:00]} Nf6 {[%emt 0:00:04]} 3. d4 {[%emt 0:00:00]} Nxe4 {[%emt 0:00:13]} 4. Bd3 {[%emt 0:00:00]} Nc6 {[%emt 0:00:33]} 5. O-O {[%emt 0:39:09]} d5 {[%emt 0:01:53]} 6. dxe5 {[%emt 0:00:42]} Be7 {[%emt 0:01:02]} 7. c3 {[%emt 0:03:16] LiveBook: 3 Games} Bg4 {[%emt 0:01:50]} 8. Bf4 $11 {[%emt 0:02:00]} Ng5 {[%emt 0:22:10]} 9. Nbd2 {[%emt 0:06:40]} O-O {[%emt 0:06:42]} 10. Re1 {[%emt 0:10:57]} Re8 {[%emt 0:23:24]} 11. Qe2 {[%emt 0:05:35]} Bf6 {[%emt 0:05:17]} 12. Qf1 {[%emt 0:12:49]} Nxf3+ {[%emt 0:07:24]} 13. Nxf3 {[%emt 0:00:34]} Bxf3 {[%emt 0:00:37]} 14. exf6 {[%emt 0:00:21]} Qxf6 {[%emt 0:02:48]} 15. Bxc7 {[%emt 0:00:10]} Be4 {[%emt 0:01:50]} 16. Rad1 {[%emt 0:04:16]} Bxd3 {[%emt 0:04:14]} 17. Qxd3 {[%emt 0:00:18]} d4 {[%emt 0:00:23]} 18. cxd4 {[%emt 0:02:36]} Qxd4 {[%emt 0:02:12]} 19. Qxd4 {[%emt 0:04:48]} Nxd4 {[%emt 0:00:05]} 20. Kf1 {[%emt 0:01:59]} Rxe1+ {[%emt 0:00:28]} 21. Kxe1 {[%emt 0:00:50]} Re8+ {[%emt 0:00:20]} 22. Kf1 {[%emt 0:00:10]} Nc6 {[%emt 0:00:43]} 23. a3 {[%emt 0:02:17]} Re7 {[%emt 0:01:11]} 24. Bf4 {[%emt 0:00:33]} f6 {[%emt 0:00:23]} 25. b4 {[%emt 0:00:46]} a6 {[%emt 0:00:05]} 26. Be3 {[%emt 0:00:37]} Ne5 {[%emt 0:06:28]} 27. a4 {[%emt 0:01:22]} Rd7 {[%emt 0:05:44]} 28. Rc1 {[%emt 0:00:42]} Kf7 {[%emt 0:00:15]} 29. Ke2 {[%emt 0:00:25]} Ke6 {[%emt 0:00:19]} 30. h3 {[%emt 0:00:30]} g6 {[%emt 0:01:17]} 31. Rc3 {[%emt 0:00:16]} f5 {[%emt 0:01:59]} 32. Rc8 {[%emt 0:00:46]} Nc6 {[%emt 0:00:23]} 33. b5 {[%emt 0:00:35]} axb5 {[%emt 0:00:27]} 34. axb5 {[%emt 0:00:00]} Nd4+ {[%emt 0:00:14]} 35. Bxd4 {[%emt 0:00:27]} Rxd4 {[%emt 0:00:07]} 36. Rc7 {[%emt 0:00:08]} Rd7 {[%emt 0:00:37]} 37. Rxd7 {[%emt 0:01:20]} Kxd7 {[%emt 0:00:04]} 38. Kd3 {[%emt 0:00:01]} Kd6 {[%emt 0:00:15]} 39. Kd4 {[%emt 0:00:11]} b6 {[%emt 0:00:05]} 40. f4 {[%emt 0:00:00]} h5 {[%emt 0:00:13]} 1/2-1/2

[Event "RUS-chT Premier League 2018"]
[Site "Sochi"]
[Date "2018.05.05"]
[Round "5"]
[White "Pogorelskikh, Sergey"]
[Black "Pershin, Denis"]
[Result "0-1"]
[ECO "B32"]
[WhiteElo "2142"]
[BlackElo "2392"]
[Annotator "NA"]
[PlyCount "58"]
[EventDate "2018.??.??"]
[EventCountry "RUS"]
[SourceTitle "playchess.com"]
[Source "ChessBase"]
[SourceQuality "1"]
[TimeControl "40/5400+30:1800+30"]

1. e4 {[%emt 0:00:00]} c5 {[%emt 0:00:05]} 2. Nf3 {[%emt 0:00:27]} Nc6 {[%emt 0:00:06]} 3. d4 {[%emt 0:00:07]} cxd4 {[%emt 0:00:05]} 4. Nxd4 {[%emt 0:00:03]} Qb6 {[%emt 0:00:05]} 5. Nb3 {[%emt 0:00:18]} Nf6 {[%emt 0:00:07]} 6. Nc3 {[%emt 0:00:20]} e6 {[%emt 0:00:07]} 7. Qe2 {[%emt 0:01:22]} Bb4 {[%emt 0:08:19]} 8. Bd2 {[%emt 0:01:25]} O-O {[%emt 0:00:16]} 9. a3 {[%emt 0:00:50]} Be7 {[%emt 0:00:13]} 10. g4 {[%emt 0:06:36]} d5 {[%emt 0:02:23]} 11. g5 {[%emt 0:05:36]} Nxe4 {[%emt 0:00:07]} 12. Nxe4 {[%emt 0:00:14]} dxe4 {[%emt 0:00:05]} 13. Qxe4 {[%emt 0:00:11]} e5 {[%emt 0:00:31]} 14. Bd3 {[%emt 0:05:55]} g6 {[%emt 0:00:05]} 15. Qe3 {[%emt 0:02:01]} Nd4 $11 {[%emt 0:18:14]} 16. Nxd4 {[%emt 0:12:13]} Bc5 {[%emt 0:00:05]} 17. Qe2 {[%emt 0:01:59]} exd4 {[%emt 0:00:21]} 18. b4 {[%emt 0:03:00]} Bd6 {[%emt 0:00:06]} 19. O-O {[%emt 0:03:53]} Bh3 {[%emt 0:05:08]} 20. Rfe1 {[%emt 0:00:50]} Qc7 {[%emt 0:00:53]} 21. f3 {[%emt 0:00:25]} Rad8 {[%emt 0:30:56]} 22. Qf2 {[%emt 0:02:04]} Rfe8 {[%emt 0:03:08]} 23. Rxe8+ {[%emt 0:05:36]} Rxe8 {[%emt 0:00:17]} 24. Re1 {[%emt 0:00:15]} Rxe1+ {[%emt 0:00:39]} 25. Bxe1 {[%emt 0:00:12]} Bf4 {[%emt 0:00:19]} 26. Qh4 {[%emt 0:09:13]} Qe5 {[%emt 0:01:00]} 27. Bf2 {[%emt 0:03:21]} Be6 {[%emt 0:01:23]} 28. Bg3 {[%emt 0:02:37]} Qe3+ {[%emt 0:00:53]} 29. Bf2 {[%emt 0:00:41]} Qxf3 {[%emt 0:00:10]} 0-1